bitfinex-derivatives/quotes_BTCF0:USTF0_20250722
["timestamp","ask_amount","ask_price","bid_price","bid_amount"]
[1753222797313,0.013,119690.0,119680.0,1.51457426]
[1753222797511,0.013,119690.0,119680.0,1.03252544]
[1753222797711,0.013,119690.0,119680.0,1.60676544]
[1753222797910,0.013,119690.0,119680.0,1.40521911]
[1753222798211,0.013,119690.0,119680.0,1.33038629]
[1753222799425,0.013,119690.0,119680.0,1.33034629]
[1753222799625,0.013,119690.0,119680.0,1.16324229]
[1753222800628,0.013,119690.0,119680.0,1.15345263]
[1753222800928,0.013,119690.0,119680.0,1.16324122]
[1753222802830,0.013,119690.0,119680.0,1.43962037]
[1753222806224,0.03514,119710.0,119700.0,0.2887927]
[1753222806419,0.2662317,119720.0,119710.0,0.2887787]
[1753222806626,0.1906048,119720.0,119710.0,0.64775426]
[1753222807021,0.02362,119720.0,119710.0,0.64775426]
[1753222807327,0.1906048,119720.0,119710.0,0.64775426]
[1753222807733,0.2021248,119720.0,119710.0,0.64775426]
[1753222808126,0.2021248,119720.0,119710.0,0.71356805]
[1753222808728,0.2187748,119720.0,119710.0,0.71356805]
[1753222808930,0.2559848,119720.0,119710.0,0.70378047]
[1753222809128,0.2559848,119720.0,119710.0,0.70051726]
[1753222809332,0.2569848,119720.0,119710.0,0.71356645]
[1753222810037,0.2569848,119720.0,119710.0,0.71456645]
[1753222810331,0.2569848,119720.0,119710.0,0.65480772]
[1753222811837,0.2569848,119720.0,119710.0,0.37842857]
[1753222812038,0.2569848,119720.0,119710.0,0.65480772]
[1753222813032,0.2626048,119720.0,119710.0,0.65480772]
[1753222813735,0.03614,119720.0,119710.0,0.65480772]
[1753222813935,0.001,119720.0,119710.0,0.65480772]
[1753222815736,0.001,119720.0,119710.0,0.77992963]
[1753222815941,0.1919191,119730.0,119720.0,0.56634395]
[1753222816237,0.8620087,119740.0,119730.0,0.2657508]
[1753222816432,0.8620087,119740.0,119730.0,0.57937914]
[1753222816639,0.8620087,119740.0,119730.0,0.58916548]
[1753222817340,0.2880487,119740.0,119730.0,0.58916548]
[1753222818240,0.2880487,119740.0,119730.0,0.56632995]
[1753222818436,0.2880487,119740.0,119730.0,0.58916388]
[1753222818942,0.2880487,119740.0,119730.0,0.59766668]
[1753222819238,0.2910487,119740.0,119730.0,0.59766668]
[1753222820842,0.2910487,119740.0,119730.0,0.32128753]
[1753222821045,0.2910487,119740.0,119730.0,0.59766668]
[1753222821544,0.2960487,119740.0,119730.0,0.59766668]
[1753222822441,0.2960487,119740.0,119730.0,0.32128753]
[1753222822644,0.2960487,119740.0,119730.0,0.59766668]
[1753222823344,0.2960487,119740.0,119730.0,0.32128753]
[1753222823641,0.2960487,119740.0,119730.0,0.59766668]
[1753222823846,0.2960487,119740.0,119730.0,0.65743333]
[1753222827142,0.2960487,119740.0,119730.0,0.64438537]
[1753222827342,0.2960487,119740.0,119730.0,0.65743362]
[1753222827840,0.2960487,119740.0,119730.0,0.6345994]
[1753222828037,0.2960487,119740.0,119730.0,0.65743362]
[1753222829642,0.2960487,119740.0,119730.0,0.36904447]
[1753222829947,0.2960487,119740.0,119730.0,0.34484447]
[1753222831348,0.2960487,119740.0,119730.0,0.36904447]
[1753222831851,0.57242785,119740.0,119730.0,0.34484447]
[1753222832148,0.57242785,119740.0,119730.0,0.28507782]
[1753222832951,0.2960487,119740.0,119730.0,0.28507782]
[1753222833151,0.2960487,119740.0,119730.0,0.35978613]
[1753222833458,0.2960487,119740.0,119730.0,0.35978621]
[1753222833952,0.2960487,119740.0,119730.0,0.2850779]
[1753222836255,0.2960487,119740.0,119730.0,0.27529173]
[1753222836454,0.2960487,119740.0,119730.0,0.28507874]
[1753222837757,0.2960487,119740.0,119730.0,0.35978705]
[1753222837956,0.2960487,119740.0,119730.0,0.28507874]
[1753222838556,0.2960487,119740.0,119730.0,0.56145789]
[1753222839055,0.2960487,119740.0,119730.0,0.58602789]
[1753222839256,0.2960487,119740.0,119730.0,0.6715162]
[1753222839456,0.2960487,119740.0,119730.0,0.59680789]
[1753222839962,0.8696887,119740.0,119730.0,0.59680789]
[1753222841357,0.2960487,119740.0,119730.0,0.59680789]
[1753222841561,0.7735369,119740.0,119730.0,0.59680789]
[1753222842155,0.8012369,119740.0,119730.0,0.59680789]
[1753222842355,0.8012369,119740.0,119730.0,0.59678659]
[1753222842356,0.8702169,119740.0,119730.0,0.59678659]
[1753222842859,0.2965769,119740.0,119730.0,0.59678659]
[1753222843055,0.4590357,119770.0,119750.0,0.05635]
[1753222843056,0.05018,119770.0,119750.0,0.05635]
[1753222843258,0.338573,119790.0,119780.0,0.2836411]
[1753222843457,0.338573,119790.0,119780.0,0.62766675]
[1753222843663,0.338573,119790.0,119780.0,0.3512876]
[1753222843963,0.2551229,119790.0,119780.0,0.62766675]
[1753222844155,0.02207,119790.0,119780.0,0.62766675]
[1753222844361,0.2086039,119800.0,119780.0,0.62766675]
[1753222844362,0.8286926,119800.0,119790.0,0.2836272]
[1753222844660,0.8286926,119800.0,119790.0,0.69400291]
[1753222845262,0.8626726,119800.0,119790.0,0.67119233]
[1753222845465,0.8716726,119800.0,119790.0,0.69501556]
[1753222845767,0.8716726,119800.0,119790.0,0.70328855]
[1753222846459,0.9107226,119800.0,119790.0,0.2600222]
[1753222846661,0.9107226,119800.0,119790.0,0.53640135]
[1753222846863,0.9137226,119800.0,119790.0,0.2600222]
[1753222847062,1.19010175,119800.0,119790.0,0.2600222]
[1753222847264,1.19010175,119800.0,119790.0,0.20970433]
[1753222847478,1.18110175,119800.0,119790.0,0.37019153]
[1753222847779,0.9077226,119800.0,119790.0,0.20330433]
[1753222847981,0.9077226,119800.0,119790.0,0.24405433]
[1753222848179,0.9077226,119800.0,119790.0,0.23427295]
[1753222848480,0.9077226,119800.0,119790.0,0.40116015]
[1753222849082,0.9077226,119800.0,119790.0,0.23427295]
[1753222849480,0.9077226,119800.0,119790.0,0.40116015]
[1753222849780,0.9077226,119800.0,119790.0,0.42353886]
[1753222849978,0.9077226,119800.0,119790.0,0.23427295]
[1753222850179,0.9077226,119800.0,119790.0,0.25665166]
[1753222850581,0.9077226,119800.0,119790.0,0.42353886]
[1753222850781,0.9077226,119800.0,119790.0,0.25665166]
[1753222851383,0.9077226,119800.0,119790.0,0.42353886]
[1753222852784,0.9077226,119800.0,119790.0,0.25665166]
[1753222852985,0.9077226,119800.0,119790.0,0.22130166]
[1753222852986,1.18410175,119800.0,119790.0,0.22130166]
[1753222853784,1.18410175,119800.0,119790.0,0.19988166]
[1753222854282,1.18410175,119800.0,119790.0,0.1998823]
[1753222854980,1.18410175,119800.0,119790.0,0.1757323]
[1753222855181,1.18410175,119800.0,119790.0,0.11006469]
[1753222857094,1.18410175,119800.0,119790.0,0.27695189]
[1753222857286,1.18410175,119800.0,119790.0,0.31277189]
[1753222857486,1.18410175,119800.0,119790.0,0.38291189]
[1753222857688,1.18410175,119800.0,119790.0,0.39369189]
[1753222858491,1.18410175,119800.0,119790.0,0.4235395]
[1753222859888,0.06205,119800.0,119790.0,0.67753994]
[1753222860090,1.47260865,119830.0,119810.0,0.3311897]
[1753222860091,0.2062777,119820.0,119810.0,0.3311897]
[1753222860393,0.03942,119820.0,119810.0,1.41868239]
[1753222861391,0.05042,119820.0,119810.0,1.45611021]
[1753222861593,0.05042,119820.0,119810.0,1.3963255]
[1753222861789,0.04642,119820.0,119810.0,1.3963255]
[1753222861993,0.2132654,119820.0,119810.0,1.3963255]
[1753222862691,0.2132654,119820.0,119810.0,1.39632177]
[1753222863282,0.2132654,119820.0,119810.0,1.45576797]
[1753222863688,0.2187654,119820.0,119810.0,0.84073367]
[1753222863895,0.2253754,119820.0,119810.0,1.13759452]
[1753222864399,0.2253754,119820.0,119810.0,0.56435452]
[1753222864896,0.2253754,119820.0,119810.0,0.84073367]
[1753222865594,0.2253754,119820.0,119810.0,0.84073419]
[1753222867298,0.2253754,119820.0,119810.0,0.85051345]
[1753222867799,0.2187654,119820.0,119810.0,0.85051345]
[1753222869095,0.2132654,119820.0,119810.0,0.85051345]
[1753222870097,0.2132654,119820.0,119810.0,1.42367345]
[1753222871401,0.2132654,119820.0,119810.0,1.41389419]
[1753222871595,0.2132654,119820.0,119810.0,1.42367303]
[1753222871898,0.2132654,119820.0,119810.0,0.85051303]
[1753222872098,0.2132654,119820.0,119810.0,1.42363303]
[1753222875897,0.2132654,119820.0,119810.0,0.85051303]
[1753222876097,0.2192554,119820.0,119810.0,1.42359303]
[1753222876300,0.2320754,119820.0,119810.0,1.42359304]
[1753222876895,0.1191054,119820.0,119810.0,1.36414684]
[1753222877100,0.3496312,119860.0,119850.0,0.2683038]
[1753222877304,1.19909035,119860.0,119850.0,0.16185667]
[1753222877604,1.22407035,119860.0,119850.0,0.16185667]
[1753222878104,0.65099035,119860.0,119850.0,0.21379139]
[1753222878297,1.22807035,119860.0,119850.0,0.21379139]
[1753222878898,1.23007035,119860.0,119850.0,0.21379139]
[1753222879904,1.23007035,119860.0,119850.0,0.16927591]
[1753222880102,1.23007035,119860.0,119850.0,0.21379139]
[1753222880501,1.23007035,119860.0,119850.0,0.16927591]
[1753222880702,1.23007035,119860.0,119850.0,0.15623698]
[1753222881005,1.23007035,119860.0,119850.0,0.24924749]
[1753222881301,1.23007035,119860.0,119850.0,0.16370749]
[1753222881710,1.23007035,119860.0,119850.0,0.1637083]
[1753222881910,1.23007035,119860.0,119850.0,0.17348619]
[1753222882410,1.23007035,119860.0,119850.0,0.18174121]
[1753222882807,1.23007035,119860.0,119850.0,0.21972121]
[1753222883701,1.23007035,119860.0,119850.0,0.20782121]
[1753222885204,1.23007035,119860.0,119850.0,0.22265971]
[1753222886914,1.23007035,119860.0,119850.0,0.21288182]
[1753222888211,1.23007035,119860.0,119850.0,0.16836634]
[1753222889213,1.23007035,119860.0,119850.0,0.23759025]
[1753222889912,1.23007035,119860.0,119850.0,0.23759]
[1753222892209,1.23007035,119860.0,119850.0,0.21151]
[1753222892415,1.23007035,119860.0,119850.0,0.20325498]
[1753222893310,1.23007035,119860.0,119850.0,0.16223498]
[1753222893518,1.23007035,119860.0,119850.0,0.15245727]
[1753222895814,0.65699035,119860.0,119850.0,0.15245727]
[1753222896014,0.9534912,119860.0,119850.0,0.27901727]
[1753222896313,1.22987035,119860.0,119850.0,0.27901727]
[1753222896514,0.3806112,119860.0,119850.0,0.72220002]
[1753222896710,0.3806112,119860.0,119850.0,0.45559824]
[1753222896915,0.9534912,119860.0,119850.0,0.45559824]
[1753222897113,0.3032112,119860.0,119850.0,0.72220002]
[1753222897319,0.8760912,119860.0,119850.0,0.66275382]
[1753222897619,0.8760912,119860.0,119850.0,0.67253104]
[1753222897818,0.9014912,119860.0,119850.0,0.67253104]
[1753222898120,0.9129312,119860.0,119850.0,0.6725309]
[1753222898519,0.9129312,119860.0,119850.0,0.47086006]
[1753222899023,0.9524612,119860.0,119850.0,0.47086006]
[1753222899322,0.9524612,119860.0,119850.0,0.47066338]
[1753222900020,0.9524612,119860.0,119850.0,0.47066253]
[1753222904523,0.9524612,119860.0,119850.0,0.74704168]
[1753222905025,0.3795812,119860.0,119850.0,0.74704168]
[1753222905225,0.9523812,119860.0,119850.0,0.74705084]
[1753222907927,0.9523812,119860.0,119850.0,0.67234253]
[1753222908325,0.9523812,119860.0,119850.0,0.64971688]
[1753222908528,0.3795812,119860.0,119850.0,0.67206851]
[1753222908729,0.9128512,119860.0,119850.0,0.67206851]
[1753222909033,0.2198108,119860.0,119850.0,0.67206851]
[1753222909230,0.006,119860.0,119850.0,0.74677682]
[1753222909426,0.1727897,119860.0,119850.0,0.74677682]
[1753222909736,0.2972897,119860.0,119850.0,0.47039767]
[1753222910035,0.57366885,119860.0,119850.0,0.27853407]
[1753222910226,0.57366885,119860.0,119850.0,0.20304315]
[1753222910526,0.57366885,119860.0,119850.0,0.14334576]
[1753222910928,0.57366885,119860.0,119850.0,0.18098576]
[1753222911228,0.57066885,119860.0,119850.0,0.19654576]
[1753222911435,0.57066885,119860.0,119850.0,0.27125407]
[1753222911737,0.56966885,119860.0,119850.0,0.24346407]
[1753222912037,0.56966885,119860.0,119850.0,0.08975085]
[1753222912237,0.56966885,119860.0,119850.0,0.16445916]
[1753222912437,0.56966885,119860.0,119850.0,0.16446029]
[1753222912639,0.56966885,119860.0,119850.0,0.15468244]
[1753222912840,0.56966885,119860.0,119850.0,0.07997413]
[1753222913136,0.56966885,119860.0,119850.0,0.14946295]
[1753222913332,0.73654085,119860.0,119850.0,0.05615992]
[1753222913527,0.2395938,119850.0,119840.0,0.05971084]
[1753222913732,1.09360295,119850.0,119840.0,0.05971084]
[1753222916035,1.09386295,119850.0,119840.0,0.05971084]
[1753222918638,1.09386295,119850.0,119840.0,0.08392084]
[1753222919336,1.09386295,119850.0,119840.0,0.09615084]
[1753222919546,1.09386295,119850.0,119840.0,0.13415084]
[1753222920144,1.09428295,119850.0,119840.0,0.18087084]
[1753222920845,1.09428295,119850.0,119840.0,0.34768834]
[1753222921344,1.09428295,119850.0,119840.0,0.18087084]
[1753222921945,1.09428295,119850.0,119840.0,0.12116]
[1753222922347,1.09428295,119850.0,119840.0,0.09575]
[1753222922549,0.8179038,119850.0,119840.0,0.07444]
[1753222922847,1.09428295,119850.0,119840.0,0.07444]
[1753222923847,1.09428295,119850.0,119840.0,0.2412575]
[1753222924046,1.09428295,119850.0,119840.0,0.2625675]
[1753222924247,1.09428295,119850.0,119840.0,0.2879775]
[1753222924644,1.09428295,119850.0,119840.0,0.12116]
[1753222925042,2.59428295,119850.0,119840.0,0.09575]
[1753222925245,2.59428295,119850.0,119840.0,0.02421]
[1753222925444,0.2013675,119840.0,119830.0,0.14254903]
[1753222925643,0.52294665,119840.0,119830.0,0.30938053]
[1753222925846,0.52294665,119840.0,119830.0,0.34705747]
[1753222926244,0.52294665,119840.0,119830.0,0.35280747]
[1753222926444,0.52294665,119840.0,119830.0,0.36587925]
[1753222927453,0.52268665,119840.0,119830.0,0.36587925]
[1753222927655,0.8136975,119840.0,119830.0,0.36587925]
[1753222927851,0.8136975,119840.0,119830.0,0.37821418]
[1753222931256,0.8136975,119840.0,119830.0,0.36587925]
[1753222932158,0.8136975,119840.0,119830.0,0.37821323]
[1753222933957,0.8187575,119840.0,119830.0,0.37821323]
[1753222934967,1.09513665,119840.0,119830.0,0.37821382]
[1753222935257,1.09513665,119840.0,119830.0,0.36587902]
[1753222936259,1.09513665,119840.0,119830.0,0.30616818]
[1753222937753,1.09513665,119840.0,119830.0,0.31844747]
[1753222939055,0.8187575,119840.0,119830.0,0.31844747]
[1753222939253,1.09513665,119840.0,119830.0,0.31844747]
[1753222939755,1.09513665,119840.0,119830.0,0.15161597]
[1753222940763,1.09513665,119840.0,119830.0,0.13933668]
[1753222941061,1.09513665,119840.0,119830.0,0.21404499]
[1753222941655,1.09522665,119840.0,119830.0,0.18863499]
[1753222942561,1.09522665,119840.0,119830.0,0.12932499]
[1753222942760,1.09522665,119840.0,119830.0,0.06690755]
[1753222943158,0.2408975,119840.0,119830.0,0.4336367]
[1753222943360,0.2408975,119840.0,119830.0,0.6004673]
[1753222943556,0.7395375,119840.0,119830.0,0.6004673]
[1753222944164,0.7395375,119840.0,119830.0,0.6004652]
[1753222944366,0.7395375,119840.0,119830.0,0.6014652]
[1753222944664,0.1668175,119840.0,119830.0,0.60146542]
[1753222944860,0.8153542,119850.0,119840.0,0.2812866]
[1753222945060,0.8151542,119850.0,119840.0,0.65182001]
[1753222945361,0.1668123,119850.0,119840.0,0.57975356]
[1753222945561,0.1668123,119850.0,119840.0,0.65446187]
[1753222945864,0.1668123,119850.0,119840.0,0.6667505]
[1753222946466,0.2007323,119850.0,119840.0,0.6667505]
[1753222946767,0.2419423,119850.0,119840.0,0.39037145]
[1753222947068,0.2008723,119850.0,119840.0,0.39037145]
[1753222947367,0.2007323,119850.0,119840.0,0.6667506]
[1753222947666,0.2007323,119850.0,119840.0,0.59204229]
[1753222948666,0.2419423,119850.0,119840.0,0.49986762]
[1753222949263,0.2419423,119850.0,119840.0,0.22348847]
[1753222949464,0.2470023,119850.0,119840.0,0.22348847]
[1753222950070,0.2470023,119850.0,119840.0,0.2234879]
[1753222950469,0.2419423,119850.0,119840.0,0.2234879]
[1753222951170,0.2419423,119850.0,119840.0,0.14884587]
[1753222951470,0.2419423,119850.0,119840.0,0.31566257]
[1753222951669,0.8146223,119850.0,119840.0,0.31566257]
[1753222952666,0.8146223,119850.0,119840.0,0.31566247]
[1753222952972,0.8146223,119850.0,119840.0,0.2935966]
[1753222953272,0.8146223,119850.0,119840.0,0.31605397]
[1753222953572,0.8146223,119850.0,119840.0,0.56997575]
[1753222953871,0.8146223,119850.0,119840.0,0.59243368]
[1753222954072,0.8146223,119850.0,119840.0,0.14923793]
[1753222955672,0.8146223,119850.0,119840.0,0.22387996]
[1753222957171,0.8196823,119850.0,119840.0,0.22387996]
[1753222959073,0.8146223,119850.0,119840.0,0.22387996]
[1753222959274,0.8146223,119850.0,119840.0,0.39069656]
[1753222959774,0.2419423,119850.0,119840.0,0.22387996]
[1753222959980,0.2419423,119850.0,119840.0,0.66707571]
[1753222960274,0.7652823,119850.0,119840.0,0.66707571]
[1753222960574,0.7394523,119850.0,119840.0,0.39069656]
[1753222960770,0.7394523,119850.0,119840.0,0.66707571]
[1753222960973,0.7657023,119850.0,119840.0,0.66707571]
[1753222961576,0.7731223,119850.0,119840.0,0.66707571]
[1753222961768,0.2004823,119850.0,119840.0,0.72674996]
[1753222961971,0.7730823,119850.0,119840.0,0.65210793]
[1753222962172,0.7730823,119850.0,119840.0,0.64233063]
[1753222962366,0.7730823,119850.0,119840.0,0.65210572]
[1753222964481,0.7730823,119850.0,119840.0,0.63942726]
[1753222964679,0.7730823,119850.0,119840.0,0.65210644]
[1753222965380,0.7730823,119850.0,119840.0,0.65210701]
[1753222966181,0.7730823,119850.0,119840.0,0.67473851]
[1753222966982,0.8116523,119850.0,119840.0,0.67473851]
[1753222968481,0.8116523,119850.0,119840.0,0.39835936]
[1753222968682,0.8116523,119850.0,119840.0,0.67473851]
[1753222969083,0.8116523,119850.0,119840.0,0.61506426]
[1753222969978,0.8116523,119850.0,119840.0,0.68970629]
[1753222971276,0.8116523,119850.0,119840.0,0.66724928]
[1753222971573,0.1930623,119850.0,119840.0,0.68999787]
[1753222971774,0.8951971,119860.0,119850.0,0.2922504]
[1753222971972,0.8564271,119860.0,119850.0,0.61400964]
[1753222972384,0.2838671,119860.0,119850.0,0.61400964]
[1753222972680,0.8564271,119860.0,119850.0,0.6810751]
[1753222972882,0.8574271,119860.0,119850.0,0.75571713]
[1753222973077,0.8584271,119860.0,119850.0,0.75571713]
[1753222973476,0.8969971,119860.0,119850.0,0.75571713]
[1753222973871,0.8969971,119860.0,119850.0,0.58891673]
[1753222974076,0.8969971,119860.0,119850.0,0.31253758]
[1753222974276,0.8969971,119860.0,119850.0,0.47933798]
[1753222974480,0.8969971,119860.0,119850.0,0.47933776]
[1753222974682,0.8969971,119860.0,119850.0,0.58891651]
[1753222974883,0.8969971,119860.0,119850.0,0.47933776]
[1753222976978,0.3244371,119860.0,119850.0,0.47933776]
[1753222977779,0.3244371,119860.0,119850.0,0.75571691]
[1753222980382,0.2024686,119860.0,119850.0,0.7427453]
[1753222980582,0.2784473,119860.0,119850.0,0.7557279]
[1753222980778,0.2784473,119860.0,119850.0,1.3056164]
[1753222980978,0.2784473,119860.0,119850.0,1.30561564]
[1753222981379,0.2784473,119860.0,119850.0,1.23097361]
[1753222981686,0.002,119860.0,119850.0,1.23097361]
[1753222981979,0.1687865,119860.0,119850.0,1.23093361]
[1753222983186,0.1677865,119860.0,119850.0,1.23093361]
[1753222983684,0.0002,119870.0,119860.0,0.1667865]
[1753222983881,0.3643745,119880.0,119870.0,0.12545]
[1753222984076,0.3641745,119880.0,119870.0,0.1851707]
[1753222984288,0.3688145,119880.0,119870.0,0.1851707]
[1753222984786,0.3688145,119880.0,119870.0,0.2922226]
[1753222984986,0.9412945,119880.0,119870.0,0.12545]
[1753222985189,0.9432945,119880.0,119870.0,0.12545]
[1753222985383,0.9452945,119880.0,119870.0,0.1481957]
[1753222986386,0.9452945,119880.0,119870.0,0.2078697]
[1753222986589,0.9452945,119880.0,119870.0,0.1481957]
[1753222988492,0.9452945,119880.0,119870.0,0.19487887]
[1753222988682,0.9452945,119880.0,119870.0,0.19487881]
[1753222988878,0.9452945,119880.0,119870.0,0.20784027]
[1753222989289,0.9452945,119880.0,119870.0,0.20783855]
[1753222989790,0.9452945,119880.0,119870.0,0.37461115]
[1753222990586,0.9452945,119880.0,119870.0,0.20783855]
[1753222991284,0.9452945,119880.0,119870.0,0.19806327]
[1753222991485,0.9452945,119880.0,119870.0,0.20783855]
[1753222991784,0.9452945,119880.0,119870.0,0.19806327]
[1753222992391,0.9452945,119880.0,119870.0,0.35187613]
[1753222992588,1.22167365,119880.0,119870.0,0.18510353]
[1753222993188,0.9452945,119880.0,119870.0,0.18510353]
[1753222994882,0.9452945,119880.0,119870.0,0.20783408]
[1753222996093,1.22167365,119880.0,119870.0,0.20783408]
[1753222996695,0.9452945,119880.0,119870.0,0.20783408]
[1753222996891,1.22167365,119880.0,119870.0,0.37466688]
[1753222997293,1.15197907,119880.0,119870.0,0.58135145]
[1753222997789,1.15197907,119880.0,119870.0,0.5585607]
[1753222997993,1.15197907,119880.0,119870.0,0.41457908]
[1753223000590,1.15197907,119880.0,119870.0,0.20789451]
[1753223000791,1.15197907,119880.0,119870.0,0.41457908]
[1753223001599,0.57949907,119880.0,119870.0,0.58135158]
[1753223001895,1.15181907,119880.0,119870.0,0.58135158]
[1753223003989,0.57485907,119880.0,119870.0,0.58135158]
[1753223004197,0.2879118,119880.0,119870.0,0.52170203]
[1753223004396,0.8601918,119880.0,119870.0,0.52170203]
[1753223004798,0.2879118,119880.0,119870.0,0.52170203]
[1753223005197,0.8601918,119880.0,119870.0,0.52170203]
[1753223005396,0.2879118,119880.0,119870.0,0.52170203]
[1753223005596,0.8601918,119880.0,119870.0,0.52170203]
[1753223005792,0.2879118,119880.0,119870.0,0.7283866]
[1753223005993,0.2879118,119880.0,119870.0,0.59635291]
[1753223006193,0.8601518,119880.0,119870.0,0.59635291]
[1753223006701,0.0041,119880.0,119870.0,1.37527748]
[1753223006900,0.2920195,119890.0,119880.0,0.2152686]
[1753223007096,0.2918195,119890.0,119880.0,0.80207015]
[1753223007292,0.2335369,119910.0,119900.0,0.1667307]
[1753223007496,0.27452239,119910.0,119900.0,0.77924871]
[1753223007898,0.31392239,119910.0,119900.0,0.77924871]
[1753223008102,0.02513,119910.0,119900.0,0.77924871]
[1753223008299,0.7714951,119920.0,119910.0,0.2913168]
[1753223008501,0.1992551,119920.0,119910.0,0.55754904]
[1753223008699,0.8108951,119920.0,119910.0,0.55754904]
[1753223009093,0.8108951,119920.0,119910.0,0.35086447]
[1753223009300,0.8108951,119920.0,119910.0,0.62622297]
[1753223010097,0.8108951,119920.0,119910.0,0.62722297]
[1753223010305,0.8108951,119920.0,119910.0,0.62822297]
[1753223010605,0.2386551,119920.0,119910.0,0.62822297]
[1753223010905,0.2386551,119920.0,119910.0,0.35286447]
[1753223011306,0.2386551,119920.0,119910.0,0.62822297]
[1753223012006,0.2386551,119920.0,119910.0,0.35286447]
[1753223013508,0.2386551,119920.0,119910.0,0.41794985]
[1753223014105,0.2386551,119920.0,119910.0,0.42647912]
[1753223014708,0.2386551,119920.0,119910.0,0.44924055]
[1753223015110,0.2386551,119920.0,119910.0,0.43625057]
[1753223015310,0.2386551,119920.0,119910.0,0.3767029]
[1753223015610,0.2386551,119920.0,119910.0,0.42647912]
[1753223016304,0.1992551,119920.0,119910.0,0.43950771]
[1753223016910,0.2386551,119920.0,119910.0,0.43950771]
[1753223017211,0.2386551,119920.0,119910.0,0.36693145]
[1753223017411,0.2386551,119920.0,119910.0,0.37996004]
[1753223020016,0.1667051,119920.0,119910.0,0.37996004]
[1753223020208,0.1928351,119920.0,119910.0,0.65531854]
[1753223020510,0.1928351,119920.0,119910.0,0.66508987]
[1753223021416,0.1928351,119920.0,119910.0,0.66508973]
[1753223021817,0.1928351,119920.0,119910.0,0.38973123]
[1753223022110,0.1928351,119920.0,119910.0,0.66508973]
[1753223022713,0.2002551,119920.0,119910.0,0.66508973]
[1753223023213,0.2002551,119920.0,119910.0,0.66508928]
[1753223023915,0.2002529,119920.0,119910.0,0.66508928]
[1753223024119,0.2002529,119920.0,119910.0,0.72463695]
[1753223024311,0.2002529,119920.0,119910.0,0.65531814]
[1753223024517,0.2002529,119920.0,119910.0,0.71486581]
[1753223026416,0.2002529,119920.0,119910.0,0.71486577]
[1753223026809,0.2002529,119920.0,119910.0,0.70183762]
[1753223027010,0.1667029,119920.0,119910.0,0.71486577]
[1753223027212,0.1667029,119920.0,119910.0,0.72986697]
[1753223027520,0.1667029,119920.0,119910.0,1.30174697]
[1753223028211,0.2421214,119930.0,119920.0,0.2875829]
[1753223028521,0.2345014,119930.0,119920.0,0.57596955]
[1753223029320,0.2345014,119930.0,119920.0,0.65051842]
[1753223029616,0.2345014,119930.0,119920.0,0.57596955]
[1753223029811,0.02613,119930.0,119920.0,0.57596955]
[1753223030117,0.02613,119930.0,119920.0,0.58573964]
[1753223030317,0.3236974,119940.0,119930.0,0.214869]
[1753223030515,0.3234974,119940.0,119930.0,0.35997404]
[1753223033118,0.52996803,119940.0,119930.0,0.56644467]
[1753223034321,0.2502088,119950.0,119940.0,0.1666752]
[1753223034621,0.52994943,119950.0,119940.0,0.56643087]
[1753223035522,0.53194943,119950.0,119940.0,0.56642913]
[1753223035813,0.53194943,119950.0,119940.0,0.56642893]
[1753223036019,0.53094943,119950.0,119940.0,0.56642893]
[1753223036219,0.53558943,119950.0,119940.0,0.13390621]
[1753223036520,0.53558943,119950.0,119940.0,0.19340466]
[1753223037322,0.53458943,119950.0,119940.0,0.19340466]
[1753223037622,0.3281188,119950.0,119940.0,0.19340466]
[1753223037815,0.53458943,119950.0,119940.0,0.19340466]
[1753223040617,0.53458943,119950.0,119940.0,0.16615466]
[1753223040824,0.74106006,119950.0,119940.0,0.09529466]
[1753223041621,0.74106006,119950.0,119940.0,0.10679466]
[1753223042922,0.53458943,119950.0,119940.0,0.14522466]
[1753223043117,0.59875509,119950.0,119940.0,0.19340466]
[1753223043518,0.59875509,119950.0,119940.0,0.19340499]
[1753223044016,0.60339509,119950.0,119940.0,0.19340499]
[1753223045626,0.60339509,119950.0,119940.0,0.20317468]
[1753223046126,0.60339509,119950.0,119940.0,0.19340499]
[1753223047021,0.60339509,119950.0,119940.0,0.10679499]
[1753223047226,1.17507509,119950.0,119940.0,0.07252499]
[1753223047629,1.17507509,119950.0,119940.0,0.02279644]
[1753223047930,1.17507509,119950.0,119940.0,0.04556649]
[1753223048130,1.17507509,119950.0,119940.0,0.10506494]
[1753223048331,1.17503509,119950.0,119940.0,0.10506494]
[1753223048632,1.17503509,119950.0,119940.0,0.15375494]
[1753223048833,1.17503509,119950.0,119940.0,0.14398499]
[1753223049126,0.2822788,119950.0,119940.0,0.63337648]
[1753223049323,0.8464988,119950.0,119940.0,0.64314636]
[1753223049524,0.2748588,119950.0,119940.0,0.64314636]
[1753223050235,0.8464988,119950.0,119940.0,0.64314636]
[1753223050836,0.8539188,119950.0,119940.0,0.64314636]
[1753223051036,0.8539188,119950.0,119940.0,0.36787007]
[1753223052336,0.2822788,119950.0,119940.0,0.35810019]
[1753223052536,0.2822788,119950.0,119940.0,0.36786894]
[1753223054837,0.2822788,119950.0,119940.0,0.30837049]
[1753223055032,0.3203788,119950.0,119940.0,0.30837049]
[1753223055432,0.60029509,119950.0,119940.0,0.14169529]
[1753223055739,0.60029509,119950.0,119940.0,0.20126554]
[1753223056040,0.60029509,119950.0,119940.0,0.10731613]
[1753223057037,0.60029509,119950.0,119940.0,0.09429025]
[1753223057237,0.60029509,119950.0,119940.0,0.10731693]
[1753223058538,0.60029509,119950.0,119940.0,0.09536693]
[1753223058733,0.60029509,119950.0,119940.0,0.08236721]
[1753223059143,0.60029509,119950.0,119940.0,0.10504721]
[1753223059843,0.60029509,119950.0,119940.0,0.09527693]
[1753223060044,0.60029509,119950.0,119940.0,0.10504726]
[1753223060243,0.60029509,119950.0,119940.0,0.09527693]
[1753223060644,1.17185509,119950.0,119940.0,0.20117729]
[1753223061538,0.8919388,119950.0,119940.0,0.37306075]
[1753223061745,0.8538388,119950.0,119940.0,0.38282936]
[1753223062044,0.2822788,119950.0,119940.0,0.38282936]
[1753223062243,0.8538388,119950.0,119940.0,0.38282936]
[1753223062744,0.8919388,119950.0,119940.0,0.21615416]
[1753223062944,0.8919388,119950.0,119940.0,0.37305995]
[1753223063341,0.8919388,119950.0,119940.0,0.38282961]
[1753223063644,0.8919388,119950.0,119940.0,0.21615441]
[1753223064346,0.8919388,119950.0,119940.0,0.20638475]
[1753223064540,0.3203788,119950.0,119940.0,0.37305995]
[1753223065042,0.3203788,119950.0,119940.0,0.20638475]
[1753223065340,0.3203788,119950.0,119940.0,0.37305995]
[1753223065548,0.3203788,119950.0,119940.0,0.20638475]
[1753223066442,0.2500088,119950.0,119940.0,0.37305995]
[1753223066643,0.2748588,119950.0,119940.0,0.20638475]
[1753223067045,0.3203788,119950.0,119940.0,0.20638475]
[1753223067748,0.59565509,119950.0,119940.0,0.20638475]
[1753223067948,0.59565509,119950.0,119940.0,0.20638507]
[1753223068648,0.60029509,119950.0,119940.0,0.20638507]
[1753223069344,0.3250188,119950.0,119940.0,0.1318362]
[1753223069546,0.3250188,119950.0,119940.0,0.14160585]
[1753223069850,0.60029509,119950.0,119940.0,0.1318362]
[1753223070751,0.60029509,119950.0,119940.0,0.11881]